fUSD/lending_fUSD_20260315
["ID","MTS","AMOUNT","RATE_DAILY","PERIOD"]
[408398499,1773567046095,-1500.0,0.00034999,30]
[408398500,1773567046105,-250.0,0.00034999,30]
[408398501,1773567046119,-500.0,0.00034999,30]
[408398502,1773567046128,-500.0,0.00034999,30]
[408398503,1773567046138,-151.0,0.00034999,30]
[408398504,1773567046147,-500.0,0.00034999,30]
[408398505,1773567046157,-200.0,0.00034999,30]
[408398506,1773567046166,-518.5,0.00034999,30]
[408398507,1773567046176,-1500.0,0.00034999,30]
[408398508,1773567046187,-250.0,0.00034999,30]
[408398509,1773567046196,-500.0,0.00034999,30]
[408398510,1773567046206,-500.0,0.00034999,30]
[408398511,1773567046216,-151.0,0.00034999,30]
[408398512,1773567046225,-250.0,0.00034999,30]
[408398513,1773567046235,-500.0,0.00034999,30]
[408398514,1773567046245,-202.1313925,0.00034999,30]
[408398515,1773567046256,-537.6845,0.00034999,30]
[408398516,1773567046266,-250.0,0.00034999,30]
[408398517,1773567046275,-1500.0,0.00034999,30]
[408398518,1773567046285,-500.0,0.00034999,30]
[408398519,1773567046294,-500.0,0.00034999,30]
[408398520,1773567046304,-151.0,0.00034999,30]
[408398521,1773567046313,-250.0,0.00034999,30]
[408398522,1773567046323,-500.0,0.00034999,30]
[408398523,1773567046332,-243.57435302,0.00034999,30]
[408398524,1773567046341,-1500.0,0.00034999,30]
[408398525,1773567046351,-557.5788265,0.00034999,30]
[408398526,1773567046361,-500.0,0.00034999,30]
[408398527,1773567046370,-151.0,0.00034999,30]
[408398528,1773567046379,-500.0,0.00034999,30]
[408398529,1773567046388,-250.0,0.00034999,30]
[408398530,1773567046398,-500.0,0.00034999,30]
[408398531,1773567046407,-1500.0,0.00034999,30]
[408398532,1773567046416,-171.86459985,0.00034999,30]
[408398533,1773567046425,-500.0,0.00034999,30]
[408398534,1773567046436,-151.0,0.00034999,30]
[408398535,1773567046445,-500.0,0.00034999,30]
[408398536,1773567046454,-250.0,0.00034999,30]
[408398537,1773567046464,-500.0,0.00034999,30]
[408398538,1773567046473,-1500.0,0.00034999,30]
[408398539,1773567046482,-500.0,0.00034999,30]
[408398540,1773567046491,-151.0,0.00034999,30]
[408398541,1773567046500,-250.0,0.00034999,30]
[408398542,1773567046510,-500.0,0.00034999,30]
[408398543,1773567046519,-500.0,0.00034999,30]
[408398544,1773567046529,-151.0,0.00034999,30]
[408398545,1773567046538,-250.0,0.00034999,30]
[408398546,1773567046548,-500.0,0.00034999,30]
[408398547,1773567046557,-151.0,0.00034999,30]
[408398548,1773567046566,-151.0,0.00034999,30]
[408398549,1773567046576,-250.0,0.00034999,30]
[408398550,1773567046585,-377.55878549,0.00034999,30]
[408398551,1773567046595,-151.0,0.00034999,30]
[408398552,1773567046604,-503.47352033,0.00034999,30]
[408398553,1773567046613,-250.0,0.00034999,30]
[408398554,1773567046622,-151.0,0.00034999,30]
[408398555,1773567046631,-151.0,0.00034999,30]
[408398556,1773567046640,-151.0,0.00034999,30]
[408398557,1773567046649,-151.0,0.00034999,30]
[408398558,1773567046658,-156.587,0.00034999,30]
[408398559,1773567046667,-266.27214247,0.00034999,30]
[408398560,1773567046677,-151.0,0.00034999,30]
[408398561,1773567046687,-162.380719,0.00034999,30]
[408398562,1773567046696,-151.0,0.00034999,30]
[408398563,1773567046705,-151.0,0.00034999,30]
[408398564,1773567046714,-1000.0,0.00034999,30]
[408398565,1773567046724,-151.0,0.00034999,30]
[408398566,1773567046733,-151.0,0.00034999,30]
[408398567,1773567046742,-168.3888056,0.00034999,30]
[408398568,1773567046751,-1042.61990826,0.00034999,30]
[408398569,1773567046760,-153.37806346,0.00034999,30]
[408398570,1773567046769,-151.0,0.00034999,30]
[408398571,1773567046778,-174.61919141,0.00034999,30]
[408398572,1773567046788,-151.0,0.00034999,30]
[408398573,1773567046796,-4840.08093391,0.00034999,30]
[408398574,1773567046806,-181.08010149,0.00034999,30]
[408398575,1773567046814,-151.0,0.00034999,30]
[408398576,1773567046823,-151.0,0.00034999,30]
[408398577,1773567046833,-151.0,0.00034999,30]
[408398578,1773567046842,-2225.09471039,0.00034999,30]
[408398579,1773567046851,-151.0,0.00034999,30]
[408398580,1773567046859,-151.0,0.00034999,30]
[408398581,1773567046868,-200.0,0.00034999,30]
[408398582,1773567046877,-200.0,0.00034999,30]
[408398583,1773567046886,-200.0,0.00034999,30]
[408398584,1773567046895,-170.0,0.00034999,30]
[408398585,1773567046904,-205.95595585,0.00034999,30]
[408398586,1773567046913,-176.29,0.00034999,30]
[408398587,1773567046923,-500.0,0.00034999,30]
[408398588,1773567046932,-182.81273,0.00034999,30]
[408398589,1773567046942,-500.0,0.00034999,30]
[408398590,1773567046951,-189.57680101,0.00034999,30]
[408398591,1773567046960,-500.0,0.00034999,30]
[408398592,1773567046970,-196.59114265,0.00034999,30]
[408398593,1773567046979,-203.86501493,0.00034999,30]
[408398594,1773567046988,-500.0,0.00034999,30]
[408398595,1773567046998,-211.40802048,0.00034999,30]
[408398596,1773567047007,-500.0,0.00034999,30]
[408398597,1773567047016,-219.23011724,0.00034999,30]
[408398598,1773567047026,-500.0,0.00034999,30]
[408398599,1773567047035,-500.0,0.00034999,30]
[408398600,1773567047044,-500.0,0.00034999,30]
[408398601,1773567047053,-500.0,0.00034999,30]
[408398602,1773567047063,-500.0,0.00034999,30]
[408398603,1773567047072,-500.0,0.00034999,30]
[408398604,1773567047081,-500.0,0.00034999,30]
[408398605,1773567047090,-500.0,0.00034999,30]
[408398606,1773567047099,-500.0,0.00034999,30]
[408398607,1773567047111,-500.0,0.00034999,30]
[408398608,1773567047121,-500.0,0.00034999,30]
[408398609,1773567047130,-500.0,0.00034999,30]
[408398610,1773567047138,-500.0,0.00034999,30]
[408398611,1773567047148,-500.0,0.00034999,30]
[408398612,1773567047158,-500.0,0.00034999,30]
[408398613,1773567047166,-151.00001,0.00034999,7]
[408398614,1773567047176,-151.0,0.00034999,7]
[408398615,1773567047186,-151.0,0.00034999,7]
[408398616,1773567047195,-151.0,0.00034999,7]
[408398617,1773567047205,-151.0,0.00034999,7]
[408398618,1773567047215,-239.085,0.00034999,7]
[408398619,1773567047224,-239.085,0.00034999,7]
[408398620,1773567047233,-239.085,0.00034999,7]
[408398621,1773567047242,-31808.11932948,0.00035,30]
[408398622,1773567047251,-2042.0,0.00035,12]
[408398623,1773567047260,-151.0,0.00035,7]
[408398624,1773567047270,-151.0,0.00035,2]
[408398625,1773567047280,-469.87233333,0.00035,30]
[408398626,1773567047290,-673.32670793,0.00035,30]
[408398627,1773567047299,-1318.31522047,0.00035,2]
[408398628,1773567047309,-200.0,0.00035,2]
[408398629,1773567047318,-151.0,0.00035,7]
[408398630,1773567047327,-1036.41647218,0.00035,7]
[408398631,1773567047336,-207.01766239,0.00035,2]
[408398632,1773567047345,-551.0,0.00035,2]
[408398633,1773567047355,-155.911522,0.00035,7]
[408398634,1773567047364,-500.0,0.00035,30]
[408398635,1773567047373,-191.05,0.00035,31]
[408398636,1773567047383,-518.0,0.00035,18]
[408398637,1773567047393,-200.42058914,0.00035,3]
[408398638,1773567047403,-155.0,0.00035,30]
[408398639,1773567047411,-153.0,0.00035,30]
[408398640,1773567047421,-186.44593375,0.00035,120]
[408398641,1773567047430,-152.0,0.00035,30]
[408398642,1773567047440,-21415.41698024,0.00035,120]
[408398643,1773567047449,-1000.0,0.00035068,120]
[408398644,1773567047459,-358.26939486,0.00035158,7]
[408398645,1773567047468,-1000.0,0.00035342,120]
[408398646,1773567047477,-200.0,0.0003535,2]
[408398647,1773567047486,-152.0,0.00035375,7]
[408398648,1773567047495,-4417.06,0.000355,2]
[408398649,1773567047504,-1392.9,0.000355,30]
[408398650,1773567047514,-1700.0,0.00035548,14]
[408398651,1773567047523,-2600.0,0.00035548,14]
[408398652,1773567047532,-700.0,0.00035548,14]
[408398653,1773567047541,-214.84793539,0.00035589,120]
[408398654,1773567047550,-361.3933785,0.00035589,120]
[408398655,1773567047560,-444.91395207,0.00035616,10]
[408398656,1773567047569,-150.0,0.00035616,20]
[408398657,1773567047578,-186.2657655,0.00035616,10]
[408398658,1773567047587,-1000.0,0.00035616,120]
[408398659,1773567047596,-278.97,0.00035616,2]
[408398660,1773567047608,-2500.0,0.000358,120]
[408398661,1773567047617,-151.0,0.000358,7]
[408398662,1773567047626,-350.0,0.00035821,8]
[408398663,1773567047635,-246.1232,0.00035888,30]
[408398664,1773567047644,-1000.0,0.0003589,120]
[408398665,1773567047653,-2000.0,0.000359,2]
[408398666,1773567047662,-100003.99929952,0.00036,120]
[408398667,1773567047671,-817.25747429,0.00036,2]
[408398668,1773567047680,-1706.44109218,0.00036,2]
[408398669,1773567047689,-155.0,0.00036,30]
[408398670,1773567047698,-153.0,0.00036,30]
[408398671,1773567047707,-152.0,0.00036,30]
[408398672,1773567047716,-160.0,0.00036,120]
[408398673,1773567047726,-469.87233333,0.00036,120]
[408398674,1773567047735,-469.87233333,0.00036,7]
[408398675,1773567047744,-171.414775,0.00036,7]
[408398676,1773567047753,-154.709285,0.00036,7]
[408398677,1773567047763,-350.0,0.00036087,8]
[408398678,1773567047772,-246.1232,0.00036088,30]
[408398679,1773567047781,-469.87233333,0.000361,30]
[408398680,1773567047790,-2000.0,0.000361,7]
[408398681,1773567047799,-1000.0,0.00036164,120]
[408398682,1773567047809,-371.77055609,0.00036223,2]
[408398683,1773567047817,-246.1232,0.00036288,30]
[408398684,1773567047826,-294.789,0.00036367,2]
[408398685,1773567047835,-1700.0,0.0003637,14]
[408398686,1773567047844,-700.0,0.0003637,14]
[408398687,1773567047853,-1560.49,0.000364,14]
[408398688,1773567047862,-1000.0,0.00036438,120]
[408398689,1773567047871,-246.1232,0.00036488,30]
[408398690,1773567047881,-4417.06,0.000365,2]
[408398691,1773567047890,-1392.9,0.000365,30]
[408398692,1773567047899,-246.1232,0.00036688,30]
[408398693,1773567047908,-150.80042107,0.00036697,2]
[408398694,1773567047918,-1000.0,0.00036712,120]
[408398695,1773567047927,-152.0,0.00036752,8]
[408398696,1773567047937,-543.60339804,0.00036795,57]
[408398697,1773567047946,-1622.84019448,0.000368,2]
[408398698,1773567047956,-156.95,0.00036862,2]
[408398699,1773567047964,-820.4106,0.00036888,7]
[408398700,1773567047974,-246.1232,0.00036888,30]
[408398701,1773567047983,-1000.0,0.00036986,120]
[408398702,1773567047993,-365.0,0.00037,2]
[408398703,1773567048002,-365.16735292,0.00037,3]
[408398704,1773567048011,-166.95214714,0.00037,2]
[408398705,1773567048020,-367.0,0.00037,2]
[408398706,1773567048029,-155.0,0.00037,30]
[408398707,1773567048038,-153.0,0.00037,30]
[408398708,1773567048047,-152.0,0.00037,30]
[408398709,1773567048057,-246.1232,0.00037088,30]
[408398710,1773567048066,-2719.989,0.00037128,47]
[408398711,1773567048075,-2600.0,0.00037192,14]
[408398712,1773567048085,-186.71753907,0.000372,120]
[408398713,1773567048094,-10804.41819576,0.00037212,120]
[408398714,1773567048104,-151.0,0.00037212,7]
[408398715,1773567048115,-12827.27394293,0.00037255,58]
[408398716,1773567048125,-1000.0,0.0003726,120]
[408398717,1773567048134,-246.1232,0.00037288,30]
[408398718,1773567048143,-350.0,0.00037327,5]
[408398719,1773567048154,-1418.66887668,0.000374,5]
[408398720,1773567048164,-246.1232,0.00037488,30]
[408398721,1773567048173,-4417.06,0.000375,2]
[408398722,1773567048184,-1000.0,0.00037534,120]
[408398723,1773567048194,-246.1232,0.00037688,30]
[408398724,1773567048203,-500.0,0.00037751,2]
[408398725,1773567048212,-500.0,0.00037751,2]
[408398726,1773567048222,-500.0,0.00037751,2]
[408398727,1773567048231,-500.0,0.00037751,2]
[408398728,1773567048240,-500.0,0.00037751,2]
[408398729,1773567048250,-500.0,0.00037751,2]
[408398730,1773567048259,-500.0,0.00037751,2]
[408398731,1773567048268,-500.0,0.00037751,2]
[408398732,1773567048276,-500.0,0.00037751,2]
[408398733,1773567048286,-500.0,0.00037751,2]
[408398734,1773567048295,-500.0,0.00037751,2]
[408398735,1773567048304,-500.0,0.00037751,2]
[408398736,1773567048313,-500.0,0.00037751,2]
[408398737,1773567048322,-500.0,0.00037751,2]
[408398738,1773567048331,-500.0,0.00037751,2]
[408398739,1773567048340,-500.0,0.00037751,2]
[408398740,1773567048348,-500.0,0.00037751,2]
[408398741,1773567048358,-500.0,0.00037751,2]
[408398742,1773567048367,-500.0,0.00037751,2]
[408398743,1773567048376,-500.0,0.00037751,2]
[408398744,1773567048385,-500.0,0.00037751,2]
[408398745,1773567048394,-500.0,0.00037751,2]
[408398746,1773567048403,-500.0,0.00037751,2]
[408398747,1773567048412,-500.0,0.00037751,2]
[408398748,1773567048420,-500.0,0.00037751,2]
[408398749,1773567048430,-500.0,0.00037751,2]
[408398750,1773567048439,-500.0,0.00037751,2]
[408398751,1773567048447,-500.0,0.00037751,2]
[408398752,1773567048456,-500.0,0.00037751,2]
[408398753,1773567048465,-500.0,0.00037751,2]
[408398754,1773567048474,-500.0,0.00037751,2]
[408398755,1773567048483,-500.0,0.00037751,2]
[408398756,1773567048492,-500.0,0.00037751,2]
[408398757,1773567048501,-500.0,0.00037751,2]
[408398758,1773567048510,-500.0,0.00037751,2]
[408398759,1773567048519,-500.0,0.00037751,2]
[408398760,1773567048527,-500.0,0.00037751,2]
[408398761,1773567048541,-500.0,0.00037751,2]
[408398762,1773567048550,-500.0,0.00037751,2]
[408398763,1773567048559,-500.0,0.00037751,2]
[408398764,1773567048568,-500.0,0.00037751,2]
[408398765,1773567048576,-500.0,0.00037751,2]
[408398766,1773567048585,-500.0,0.00037751,2]
[408398767,1773567048594,-500.0,0.00037751,2]
[408398768,1773567048603,-500.0,0.00037751,2]
[408398769,1773567048612,-500.0,0.00037751,2]
[408398770,1773567048621,-505.0,0.00037751,2]
[408398771,1773567048746,-555.0,0.00037751,2]
[408398772,1773567048756,-151.0,0.00037808,7]
[408398773,1773567048765,-151.0,0.00037808,7]
[408398774,1773567048774,-1000.0,0.00037808,120]
[408398775,1773567048784,-203.7219116,0.0003788,2]
[408398776,1773567048793,-246.1232,0.00037888,30]
[408398777,1773567048802,-153.01162946,0.000379,120]
[408398778,1773567048811,-1560.49,0.000379,14]
[408398779,1773567048820,-163.41923182,0.00038,30]
[408398780,1773567048829,-164.0,0.00038,30]
[408398781,1773567048838,-162.73502477,0.00038,30]
[408398782,1773567048848,-853.53286748,0.00038,120]
[408398783,1773567048858,-7234.83414539,0.00038,30]
[408398784,1773567048867,-10009.7434,0.00038,2]
[408398785,1773567048876,-551.0,0.00038,2]
[408398786,1773567048886,-1700.0,0.00038014,14]
[408398787,1773567048895,-700.0,0.00038014,14]
[408398788,1773567048904,-8912.9698687,0.00038018,2]
[408398789,1773567048913,-5528.8780553,0.00038018,2]
[408398790,1773567048922,-1000.0,0.00038082,120]
[408398791,1773567048931,-246.1232,0.00038088,30]
[408398792,1773567048940,-296.57517427,0.000381,33]
[408398793,1773567048949,-152.0,0.00038128,9]
[408398794,1773567048958,-350.0,0.00038273,7]
[408398795,1773567048967,-246.1232,0.00038288,30]
[408398796,1773567048977,-513.86473282,0.000383,30]
[408398797,1773567048986,-1000.0,0.00038356,120]
[408398798,1773567048995,-151.0,0.00038391,14]
[408398799,1773567049006,-246.1232,0.00038488,30]
[408398800,1773567049015,-2500.0,0.000385,14]
[408398801,1773567049025,-9868.05866926,0.000385,30]
[408398802,1773567049035,-4417.06,0.000385,30]
[408398803,1773567049044,-455.0,0.00038603,2]
[408398804,1773567049053,-1000.0,0.0003863,120]
[408398805,1773567049062,-246.1232,0.00038688,30]
[408398806,1773567049072,-500.0,0.000387,120]
[408398807,1773567049081,-1044.72351194,0.000387,2]
[408398808,1773567049090,-776.50235601,0.00038771,64]
[408398809,1773567049099,-152.0,0.00038816,4]
[408398810,1773567049111,-2600.0,0.00038836,14]
[408398811,1773567049120,-3189.76696834,0.0003889,30]
[408398812,1773567049129,-245.19873486,0.000389,30]
[408398813,1773567049138,-1000.0,0.00038904,120]
[408398814,1773567049147,-1206.8992,0.00038949,2]
[408398815,1773567049157,-10000.0,0.00038949,2]
[408398816,1773567049166,-1988.7523942,0.00038973,2]
[408398817,1773567049175,-1233.6594459,0.00038973,2]
[408398818,1773567049187,-246.1232,0.00039088,30]
[408398819,1773567049196,-1000.0,0.00039178,120]
[408398820,1773567049205,-1560.49,0.000392,14]
[408398821,1773567049215,-159.316698,0.00039254,7]
[408398822,1773567049224,-151.0,0.00039254,28]
[408398823,1773567049234,-151.0,0.00039254,28]
[408398824,1773567049245,-256.242297,0.00039254,28]
[408398825,1773567049254,-2923.4052993,0.00039254,2]
[408398826,1773567049264,-246.1232,0.00039288,30]
[408398827,1773567049273,-1000.0,0.00039452,120]
[408398828,1773567049283,-246.1232,0.00039488,30]
[408398829,1773567049292,-4417.06,0.000395,30]
[408398830,1773567049302,-518.0,0.000395,22]
[408398831,1773567049312,-152.0,0.00039504,10]
[408398832,1773567049321,-1392.9,0.000396,30]
[408398833,1773567049330,-2000.0,0.000396,2]
[408398834,1773567049339,-1700.0,0.00039658,14]
[408398835,1773567049348,-700.0,0.00039658,14]
[408398836,1773567049358,-246.1232,0.00039688,30]
[408398837,1773567049367,-512.75059119,0.00039726,120]
[408398838,1773567049376,-1000.0,0.00039726,120]
[408398839,1773567049385,-2500.0,0.000398,20]
[408398840,1773567049394,-246.1232,0.00039888,30]
[408398841,1773567049403,-426.009444,0.000399,2]
[408398842,1773567049412,-9629.77525966,0.000399,30]
[408398843,1773567049421,-400.0,0.0003997,2]
[408398844,1773567049430,-1000.0,0.0004,120]
[408398845,1773567049440,-962.88809868,0.0004,2]
[408398846,1773567049449,-12154.02216183,0.0004,120]
[408398847,1773567049458,-153245.62183919,0.0004,30]
[408398848,1773567049467,-283.08288188,0.0004,30]
[408398849,1773567049476,-540.0,0.0004,30]
[408398850,1773567049485,-708.9386557,0.0004,2]
[408398851,1773567049494,-1680.98393624,0.0004,30]
[408398852,1773567049503,-316.82236682,0.0004,2]
[408398853,1773567049512,-162.68413495,0.0004,2]
[408398854,1773567049521,-161.0,0.0004,120]
[408398855,1773567049530,-165.0,0.0004,120]
[408398856,1773567049539,-152.19807144,0.0004,30]
[408398857,1773567049548,-397.79047211,0.0004,120]
[408398858,1773567049558,-197.2332,0.0004,120]
[408398859,1773567049568,-477.12749073,0.0004,30]
[408398860,1773567049579,-12505.78206468,0.0004,30]
[408398861,1773567049588,-1000.0,0.0004,2]
[408398862,1773567049598,-159.63173107,0.0004,120]
[408398863,1773567049607,-2000.71419158,0.0004,30]
[408398864,1773567049616,-213.81697425,0.0004,30]
[408398865,1773567049625,-814.03004457,0.0004,3]
[408398866,1773567049635,-393.1620944,0.0004,2]
[408398867,1773567049646,-1571.03734489,0.0004,2]
[408398868,1773567049655,-14894.72440637,0.0004,30]
[408398869,1773567049664,-225.83145556,0.0004,2]
[408398870,1773567049673,-15103.35594802,0.0004,30]
[408398871,1773567049688,-10000.0,0.0004,7]
[408398872,1773567049701,-230.43114336,0.0004,120]
[408398873,1773567049710,-200.0,0.0004,2]
[408398874,1773567049719,-250.0,0.0004,7]
[408398875,1773567049729,-250.0,0.0004,7]
[408398876,1773567049738,-250.0,0.0004,7]
[408398877,1773567049747,-250.0,0.0004,7]
[408398878,1773567049756,-250.0,0.0004,7]
[408398879,1773567049766,-250.0,0.0004,7]
[408398880,1773567049775,-250.0,0.0004,7]
[408398881,1773567049784,-250.0,0.0004,7]
[408398882,1773567049793,-187.0,0.0004,7]
[408398883,1773567049803,-940.0,0.0004,2]
[408398884,1773567049814,-151.0,0.0004,7]
[408398885,1773567049823,-1055.0,0.0004,30]
[408398886,1773567049832,-1148.0,0.0004,30]
[408398887,1773567049841,-204.22317442,0.0004,120]
[408398888,1773567049851,-3350.89769703,0.0004,15]
[408398889,1773567049860,-206.05,0.0004,120]
[408398890,1773567049869,-151.0,0.0004,120]
[408398891,1773567049878,-151.0,0.0004,120]
[408398892,1773567049886,-151.0,0.0004,120]
[408398893,1773567049896,-193.975735,0.0004,120]
[408398894,1773567049905,-151.22,0.0004,2]
[408398895,1773567049914,-151.22,0.0004,2]
[408398896,1773567049923,-151.22,0.0004,2]
[408398897,1773567049933,-151.22,0.0004,2]
[408398898,1773567049942,-151.22,0.0004,2]
[408398899,1773567049950,-151.22,0.0004,2]
[408398900,1773567049959,-151.22,0.0004,2]
[408398901,1773567049969,-151.22,0.0004,2]
[408398902,1773567049978,-151.22,0.0004,2]
[408398903,1773567049987,-151.22,0.0004,2]
[408398904,1773567049996,-151.22,0.0004,2]
[408398905,1773567050005,-151.22,0.0004,2]
[408398906,1773567050015,-151.22,0.0004,2]
[408398907,1773567050024,-151.22,0.0004,2]
[408398908,1773567050034,-151.22,0.0004,2]
[408398909,1773567050043,-151.22,0.0004,2]
[408398910,1773567050052,-151.22,0.0004,2]
[408398911,1773567050062,-151.22,0.0004,2]
[408398912,1773567050071,-151.22,0.0004,2]
[408398913,1773567050081,-151.22,0.0004,2]
[408398914,1773567050091,-151.22,0.0004,2]
[408398915,1773567050100,-151.22,0.0004,2]
[408398916,1773567050114,-151.22,0.0004,2]
[408398917,1773567050123,-151.22,0.0004,2]
[408398918,1773567050134,-151.22,0.0004,2]
[408398919,1773567050143,-151.22,0.0004,2]
[408398920,1773567050155,-151.22,0.0004,2]
[408398921,1773567050164,-151.22,0.0004,2]
[408398922,1773567050174,-151.22,0.0004,2]
[408398923,1773567050185,-151.22,0.0004,2]
[408398924,1773567050195,-469.87233333,0.0004,10]
[408398925,1773567050205,-239.085,0.0004,120]
[408398926,1773567050215,-239.085,0.0004,120]
[408398927,1773567050224,-239.085,0.0004,120]
[408398928,1773567050233,-246.1232,0.00040088,30]
[408398929,1773567050243,-1000.0,0.00040274,120]
[408398930,1773567050253,-246.1232,0.00040288,30]
[408398931,1773567050261,-2190.33671612,0.000403,30]
[408398932,1773567050268,-2600.0,0.0004048,14]
[408398933,1773567050276,-652.2998926,0.00040488,2]
[408398934,1773567050286,-246.1232,0.00040488,30]
[408398935,1773567050295,-4417.06,0.000405,30]
[408398936,1773567050304,-1999.0,0.00040548,120]
[408398937,1773567050313,-156.95,0.00040598,30]
[408398938,1773567050323,-3995.87481013,0.000406,2]
[408398939,1773567050332,-1560.49,0.000406,14]
[408398940,1773567050342,-1392.9,0.000406,30]
[408398941,1773567050352,-246.1232,0.00040688,30]
[408398942,1773567050362,-152108.76583977,0.000407,120]
[408398943,1773567050371,-700.0,0.000407,14]
[408398944,1773567050381,-839.27646644,0.00040747,70]
[408398945,1773567050390,-7589.0,0.00040795,120]
[408398946,1773567050399,-7629.0,0.000408,60]
[408398947,1773567050409,-5000.0,0.000408,60]
[408398948,1773567050419,-5000.0,0.000408,60]
[408398949,1773567050428,-5000.0,0.000408,60]
[408398950,1773567050437,-5000.0,0.000408,60]
[408398951,1773567050447,-1198.06,0.000408,120]
[408398952,1773567050458,-700.0,0.000408,14]
[408398953,1773567050468,-531.15277762,0.00040811,7]
[408398954,1773567050478,-150.0,0.00040818,120]
[408398955,1773567050488,-155.45652414,0.00040818,16]
[408398956,1773567050497,-150.0,0.00040818,120]
[408398957,1773567050507,-150.0,0.00040818,120]
[408398958,1773567050516,-153.16199732,0.00040818,120]
[408398959,1773567050525,-150.0,0.00040818,120]
[408398960,1773567050535,-155.82159694,0.00040818,120]
[408398961,1773567050544,-151.46727953,0.00040818,120]
[408398962,1773567050554,-212.76778111,0.00040818,120]
[408398963,1773567050563,-154.43035368,0.00040818,120]
[408398964,1773567050573,-500.0,0.00040818,120]
[408398965,1773567050582,-150.0,0.00040818,2]
[408398966,1773567050591,-191.20135912,0.00040818,120]
[408398967,1773567050600,-500.0,0.00040818,120]
[408398968,1773567050609,-1489.97049065,0.0004082,60]
[408398969,1773567050618,-1489.97049065,0.0004082,60]
[408398970,1773567050628,-1489.97049065,0.0004082,60]
[408398971,1773567050637,-1489.97049065,0.0004082,60]
[408398972,1773567050647,-1489.97049064,0.0004082,60]
[408398973,1773567050657,-1489.97049064,0.0004082,60]
[408398974,1773567050666,-1489.97049064,0.0004082,60]
[408398975,1773567050676,-1107.50977528,0.0004082,30]
[408398976,1773567050686,-500.0,0.00040821,120]
[408398977,1773567050695,-500.0,0.00040821,120]
[408398978,1773567050705,-500.0,0.00040821,120]
[408398979,1773567050715,-407.22884135,0.00040821,2]
[408398980,1773567050725,-500.0,0.00040821,120]
[408398981,1773567050735,-500.0,0.00040821,120]
[408398982,1773567050745,-500.0,0.00040821,120]
[408398983,1773567050754,-619.25152153,0.00040821,120]
[408398984,1773567050764,-500.0,0.00040821,15]
[408398985,1773567050774,-500.0,0.00040821,15]
[408398986,1773567050784,-500.0,0.00040821,15]
[408398987,1773567050793,-500.0,0.00040821,15]
[408398988,1773567050802,-500.0,0.00040821,15]
[408398989,1773567050811,-500.0,0.00040821,15]
[408398990,1773567050821,-300.99,0.00040821,15]
[408398991,1773567050833,-176.17667065,0.00040821,30]
[408398992,1773567050842,-155.53843798,0.00040821,120]
[408398993,1773567050852,-175.30271605,0.00040821,120]
[408398994,1773567050862,-174.51371966,0.00040821,120]
[408398995,1773567050872,-153.07542946,0.00040821,120]
[408398996,1773567050881,-834.65,0.00040821,14]
[408398997,1773567050891,-834.65,0.00040821,14]
[408398998,1773567050901,-834.65,0.00040821,14]